bitfinex/quotes_BTCUSD_20230901
["timestamp","ask_amount","ask_price","bid_price","bid_amount"]
[1693598451960,0.0798742,25646.0,25645.0,0.59857866]
[1693598453275,0.0798742,25646.0,25645.0,0.63657866]
[1693598453686,0.0798742,25646.0,25645.0,0.67457866]
[1693598456216,0.0798742,25646.0,25645.0,0.60478678]
[1693598456497,0.0798742,25646.0,25645.0,0.90478678]
[1693598459187,0.0798742,25646.0,25645.0,1.29962446]
[1693598459188,0.008955,25646.0,25645.0,1.29962446]
[1693598459407,0.008955,25646.0,25645.0,1.84694013]
[1693598459775,0.008955,25646.0,25645.0,1.84685783]
[1693598459904,0.008955,25646.0,25645.0,1.70720694]
[1693598460102,0.008955,25646.0,25645.0,1.9400956]
[1693598460317,0.008955,25646.0,25645.0,1.93996045]
[1693598460485,0.008955,25646.0,25645.0,1.90196045]
[1693598460684,0.008955,25646.0,25645.0,1.54737179]
[1693598460914,0.008955,25646.0,25645.0,1.58437179]
[1693598461113,0.008955,25646.0,25645.0,1.54637179]
[1693598461340,0.008955,25646.0,25645.0,1.68507179]
[1693598461543,0.008955,25646.0,25645.0,1.91796045]
[1693598461975,0.008955,25646.0,25645.0,1.68507179]
[1693598463000,0.008955,25646.0,25645.0,1.6837522]
[1693598463201,0.008955,25646.0,25645.0,1.82336946]
[1693598463550,0.008955,25646.0,25645.0,1.91645983]
[1693598463867,0.008955,25646.0,25645.0,1.6837522]
[1693598464515,0.008955,25646.0,25645.0,1.95647623]
[1693598464909,0.008955,25646.0,25645.0,1.77031013]
[1693598465288,0.005525,25646.0,25645.0,1.77031013]
[1693598465692,0.005525,25646.0,25645.0,1.95647623]
[1693598466318,0.005525,25646.0,25645.0,1.77031013]
[1693598466732,0.005525,25646.0,25645.0,1.77011333]
[1693598467682,0.005525,25646.0,25645.0,1.95622428]
[1693598468624,0.005525,25646.0,25645.0,1.95834107]
[1693598468819,0.005525,25646.0,25645.0,2.19097975]
[1693598469248,0.005525,25646.0,25645.0,1.95834107]
[1693598469539,0.005525,25646.0,25645.0,2.19097975]
[1693598470241,0.0195,25647.0,25646.0,0.0490808]
[1693598470437,0.0195,25647.0,25646.0,1.76892094]
[1693598470638,0.0195,25647.0,25646.0,1.46121441]
[1693598471444,0.0195,25647.0,25646.0,1.68522094]
[1693598472279,0.0195,25647.0,25646.0,1.53721441]
[1693598473134,0.0195,25647.0,25646.0,1.72322094]
[1693598474780,0.0195,25647.0,25646.0,1.70322094]
[1693598475007,0.0195,25647.0,25646.0,1.84492094]
[1693598475180,0.0195,25647.0,25646.0,1.70540584]
[1693598476270,0.0195,25647.0,25646.0,1.93804452]
[1693598476475,0.0195,25647.0,25646.0,1.72320158]
[1693598476666,0.0195,25647.0,25646.0,1.72320272]
[1693598476845,0.0195,25647.0,25646.0,1.68520272]
[1693598477054,0.0195,25647.0,25646.0,1.68420272]
[1693598477306,0.0195,25647.0,25646.0,1.54470584]
[1693598477877,0.0195,25647.0,25646.0,1.60521536]
[1693598478077,0.0195,25647.0,25646.0,1.68422492]
[1693598478281,0.0195,25647.0,25646.0,1.72122492]
[1693598479074,0.0195,25647.0,25646.0,1.68422492]
[1693598479364,0.0195,25647.0,25646.0,1.54470584]
[1693598479789,0.0195,25647.0,25646.0,1.58170584]
[1693598480433,0.0195,25647.0,25646.0,1.81434452]
[1693598480826,0.0195,25647.0,25646.0,1.58170584]
[1693598481239,0.0195,25647.0,25646.0,1.62833799]
[1693598481820,0.0195,25647.0,25646.0,1.6886619]
[1693598482039,0.0195,25647.0,25646.0,1.62833799]
[1693598482242,0.0195,25647.0,25646.0,1.69475839]
[1693598482469,0.0195,25647.0,25646.0,1.62833799]
[1693598483223,0.0195,25647.0,25646.0,1.39569931]
[1693598484143,0.0195,25647.0,25646.0,1.59062931]
[1693598486190,0.0195,25647.0,25646.0,1.39569931]
[1693598487769,0.0195,25647.0,25646.0,1.39811123]
[1693598488379,0.0195,25647.0,25646.0,1.4704701]
[1693598488588,0.0195,25647.0,25646.0,1.39811123]
[1693598489391,0.0195,25647.0,25646.0,1.39311123]
[1693598490359,0.0195,25647.0,25646.0,1.45560987]
[1693598490559,0.0195,25647.0,25646.0,1.39311123]
[1693598491392,0.0195,25647.0,25646.0,1.45607639]
[1693598491600,0.0195,25647.0,25646.0,1.68914044]
[1693598492298,0.0195,25647.0,25646.0,1.45607639]
[1693598492906,0.0395,25647.0,25646.0,1.56211364]
[1693598493108,0.30083159,25647.0,25646.0,0.66011128]
[1693598493343,0.30083159,25647.0,25646.0,0.1672588]
[1693598493782,0.30083159,25647.0,25646.0,0.1302588]
[1693598494151,0.0954192,25647.0,25646.0,0.074]
[1693598494576,0.0954192,25647.0,25646.0,0.037]
[1693598495322,0.0954192,25647.0,25646.0,0.074]
[1693598495527,0.26783089,25647.0,25646.0,0.037]
[1693598495770,0.26783089,25647.0,25646.0,0.337]
[1693598496170,0.26783089,25647.0,25646.0,0.075]
[1693598498052,0.0954192,25647.0,25646.0,0.075]
[1693598498304,0.1554192,25647.0,25646.0,0.075]
[1693598499286,0.3786883,25647.0,25646.0,0.075]
[1693598499481,0.1554192,25647.0,25646.0,0.075]
[1693598499722,0.32749764,25647.0,25646.0,0.075]
[1693598507286,0.1554192,25647.0,25646.0,0.075]
[1693598507717,0.4641792,25647.0,25646.0,0.075]
[1693598507921,0.4794192,25647.0,25646.0,0.075]
[1693598508118,0.4851192,25647.0,25646.0,0.075]
[1693598508324,0.4809192,25647.0,25646.0,0.075]
[1693598508523,0.4789992,25647.0,25646.0,0.075]
[1693598508790,0.4781592,25647.0,25646.0,0.075]
[1693598509198,0.86386598,25647.0,25646.0,0.075]
[1693598509425,0.86428598,25647.0,25646.0,0.075]
[1693598509606,0.86398598,25647.0,25646.0,0.075]
[1693598509829,0.86494598,25647.0,25646.0,0.075]
[1693598510030,0.86404598,25647.0,25646.0,0.075]
[1693598510177,0.86284598,25647.0,25646.0,0.075]
[1693598510345,0.86332598,25647.0,25646.0,0.075]
[1693598510546,0.86326598,25647.0,25646.0,0.075]
[1693598510961,0.86314598,25647.0,25646.0,0.075]
[1693598511189,0.87628598,25647.0,25646.0,0.075]
[1693598511385,1.87430898,25647.0,25646.0,0.075]
[1693598511646,1.87646898,25647.0,25646.0,0.075]
[1693598511854,1.88354898,25647.0,25646.0,0.075]
[1693598512059,1.88126898,25647.0,25646.0,0.075]
[1693598512302,1.88252898,25647.0,25646.0,0.075]
[1693598512515,1.88342898,25647.0,25646.0,0.075]
[1693598512720,1.92288898,25647.0,25646.0,0.075]
[1693598512919,1.92246898,25647.0,25646.0,0.075]
[1693598513161,1.91478898,25647.0,25646.0,0.075]
[1693598513363,1.91448898,25647.0,25646.0,0.075]
[1693598513688,1.91622898,25647.0,25646.0,0.075]
[1693598513897,1.91682898,25647.0,25646.0,0.075]
[1693598514099,1.91004898,25647.0,25646.0,0.075]
[1693598514300,1.91334898,25647.0,25646.0,0.075]
[1693598514511,1.94396898,25647.0,25646.0,0.075]
[1693598514737,2.70499198,25647.0,25646.0,0.075]
[1693598514936,2.70547198,25647.0,25646.0,0.075]
[1693598515160,2.72143198,25647.0,25646.0,0.075]
[1693598515509,2.70859198,25647.0,25646.0,0.038]
[1693598515690,2.70871198,25647.0,25646.0,0.038]
[1693598515921,2.71683198,25647.0,25646.0,0.039]
[1693598516101,3.32221498,25647.0,25646.0,0.039]
[1693598516304,0.12,25639.0,25638.0,0.00099396]
[1693598516484,0.28575391,25639.0,25638.0,0.00099396]
[1693598516680,0.1109192,25638.0,25637.0,0.03151712]
[1693598516888,0.26575391,25638.0,25635.0,0.23312643]
[1693598517085,0.0709192,25636.0,25635.0,0.62021321]
[1693598517290,0.0709192,25636.0,25635.0,1.06383825]
[1693598517495,0.48447915,25636.0,25634.0,0.43702643]
[1693598517695,0.0109192,25634.0,25633.0,0.0942461]
[1693598517896,0.0709192,25634.0,25633.0,0.0932588]
[1693598519363,0.0739192,25634.0,25633.0,0.1302588]
[1693598519736,0.0739192,25634.0,25633.0,0.1642588]
[1693598520679,0.0739192,25634.0,25633.0,0.2859588]
[1693598520912,0.0739192,25634.0,25633.0,0.1927]
[1693598521521,0.27726923,25634.0,25633.0,0.1927]
[1693598521969,0.31726923,25634.0,25633.0,0.071]
[1693598523017,0.47332523,25634.0,25633.0,0.071]
[1693598523622,0.2899752,25634.0,25633.0,0.071]
[1693598523816,0.51491125,25634.0,25633.0,0.071]
[1693598524658,0.58433125,25634.0,25633.0,0.071]
[1693598524867,0.58451125,25634.0,25633.0,0.071]
[1693598525070,0.55444185,25634.0,25633.0,0.071]
[1693598525289,0.3588552,25634.0,25633.0,0.071]
[1693598525481,0.51822877,25634.0,25633.0,0.071]
[1693598526123,0.51822877,25634.0,25630.0,0.2039]
[1693598526124,0.51522877,25634.0,25630.0,0.2039]
[1693598526322,0.73838348,25634.0,25633.0,0.034]
[1693598526528,0.58588877,25634.0,25633.0,0.071]
[1693598526724,0.51622877,25634.0,25633.0,0.034]
[1693598527137,0.51622877,25634.0,25633.0,0.035]
[1693598527138,0.53022877,25634.0,25633.0,0.035]
[1693598528073,0.52922877,25634.0,25633.0,0.001]
[1693598528277,0.53822877,25634.0,25633.0,0.002]
[1693598530684,0.60446877,25634.0,25633.0,0.002]
[1693598530887,0.60812877,25634.0,25633.0,0.002]
[1693598531221,0.60950877,25634.0,25633.0,0.002]
[1693598531389,0.3979952,25634.0,25633.0,0.002]
[1693598531586,0.58188845,25634.0,25633.0,0.002]
[1693598531791,0.58206845,25634.0,25633.0,0.002]
[1693598532018,0.3996752,25634.0,25633.0,0.002]
[1693598532220,0.4008752,25634.0,25633.0,0.002]
[1693598532436,0.4011152,25634.0,25633.0,0.002]
[1693598532613,0.4017152,25634.0,25633.0,0.002]
[1693598532845,0.4016552,25634.0,25633.0,0.002]
[1693598533230,0.4014752,25634.0,25633.0,0.002]
[1693598533481,0.4015352,25634.0,25633.0,0.002]
[1693598533656,0.4003352,25634.0,25633.0,0.002]
[1693598533884,0.4002152,25634.0,25633.0,0.002]
[1693598534058,0.5001552,25634.0,25633.0,0.002]
[1693598534261,0.4961352,25634.0,25633.0,0.002]
[1693598534463,0.4958952,25634.0,25633.0,0.002]
[1693598534663,0.4952952,25634.0,25633.0,0.002]
[1693598534869,0.4978152,25634.0,25633.0,0.002]
[1693598535068,0.4976352,25634.0,25633.0,0.002]
[1693598535244,0.4980552,25634.0,25633.0,0.002]
[1693598535450,0.4978752,25634.0,25633.0,0.002]
[1693598535623,0.4967352,25634.0,25633.0,0.002]
[1693598535827,0.4968552,25634.0,25633.0,0.002]
[1693598536028,0.4967352,25634.0,25633.0,0.002]
[1693598536224,0.70011782,25634.0,25633.0,0.002]
[1693598536450,0.4966152,25634.0,25633.0,0.002]
[1693598536696,0.4958352,25634.0,25633.0,0.002]
[1693598536958,0.6160952,25634.0,25633.0,0.002]
[1693598537189,0.6204752,25634.0,25633.0,0.002]
[1693598537411,0.6208352,25634.0,25633.0,0.002]
[1693598537620,0.80349508,25634.0,25633.0,0.002]
[1693598537815,1.00666198,25634.0,25633.0,0.002]
[1693598538014,1.02400198,25634.0,25633.0,0.002]
[1693598538217,1.02646198,25634.0,25633.0,0.002]
[1693598538417,1.02796198,25634.0,25633.0,0.002]
[1693598538834,2.06652198,25634.0,25633.0,0.002]
[1693598538976,2.22222198,25634.0,25633.0,0.002]
[1693598539174,2.22270198,25634.0,25633.0,0.002]
[1693598539422,2.22162198,25634.0,25633.0,0.002]
[1693598539826,2.37924198,25634.0,25633.0,0.002]
[1693598540028,2.38080198,25634.0,25633.0,0.002]
[1693598540361,2.37924198,25634.0,25633.0,0.002]
[1693598540576,2.24460198,25634.0,25633.0,0.002]
[1693598540850,2.24256198,25634.0,25633.0,0.002]
[1693598541115,2.24208198,25634.0,25633.0,0.002]
[1693598541290,2.24172198,25634.0,25633.0,0.002]
[1693598541517,2.24094198,25634.0,25633.0,0.002]
[1693598541724,2.23200198,25634.0,25633.0,0.002]
[1693598541943,2.23176198,25634.0,25633.0,0.002]
[1693598542142,2.23050198,25634.0,25633.0,0.002]
[1693598542370,2.22924198,25634.0,25633.0,0.002]
[1693598542550,2.22954198,25634.0,25633.0,0.002]
[1693598542703,2.22948198,25634.0,25633.0,0.002]
[1693598542882,2.23224198,25634.0,25633.0,0.002]
[1693598543083,2.23158198,25634.0,25633.0,0.002]
[1693598543287,2.23902198,25634.0,25633.0,0.002]
[1693598543483,2.23722198,25634.0,25633.0,0.002]
[1693598543715,2.23596198,25634.0,25633.0,0.002]
[1693598543911,2.23374198,25634.0,25633.0,0.002]
[1693598544117,2.23140198,25634.0,25633.0,0.002]
[1693598544324,2.22636198,25634.0,25633.0,0.002]
[1693598544603,2.22510198,25634.0,25633.0,0.002]
[1693598544807,2.22936198,25634.0,25633.0,0.002]
[1693598544926,2.22852198,25634.0,25633.0,0.002]
[1693598545298,2.22498198,25634.0,25633.0,0.002]
[1693598545435,1.62914198,25634.0,25633.0,0.002]
[1693598545636,1.62464198,25634.0,25633.0,0.002]
[1693598545892,1.62440198,25634.0,25633.0,0.002]
[1693598546060,1.62584198,25634.0,25633.0,0.002]
[1693598546467,1.62782198,25634.0,25633.0,0.002]
[1693598546712,1.62806198,25634.0,25633.0,0.002]
[1693598547044,1.62830198,25634.0,25633.0,0.002]
[1693598547247,1.62824198,25634.0,25633.0,0.002]
[1693598547420,1.62872198,25634.0,25633.0,0.002]
[1693598547600,1.62968198,25634.0,25633.0,0.002]
[1693598547803,1.63058198,25634.0,25633.0,0.002]
[1693598548004,1.62974198,25634.0,25633.0,0.002]
[1693598548204,1.63058198,25634.0,25633.0,0.002]
[1693598548407,1.63046198,25634.0,25633.0,0.002]
[1693598548636,1.63376198,25634.0,25633.0,0.002]
[1693598548822,1.63256198,25634.0,25633.0,0.002]
[1693598550894,1.87663145,25634.0,25633.0,0.002]
[1693598551358,1.87975145,25634.0,25633.0,0.002]
[1693598551716,2.35799145,25634.0,25633.0,0.002]
[1693598552762,1.77283145,25634.0,25633.0,0.002]
[1693598553174,1.94766616,25634.0,25633.0,0.002]
[1693598553372,4.13417145,25634.0,25633.0,0.002]
[1693598553574,4.44785145,25634.0,25633.0,0.002]
[1693598553921,4.46963145,25634.0,25633.0,0.002]
[1693598554126,4.63511145,25634.0,25633.0,0.001]
[1693598554331,4.66079145,25634.0,25633.0,0.001]
[1693598554485,4.68579145,25634.0,25633.0,0.004]
[1693598554682,4.70311145,25634.0,25633.0,0.003]
[1693598555032,1.92561145,25634.0,25633.0,0.006]
[1693598555142,1.92837145,25634.0,25633.0,0.006]
[1693598555347,1.93377145,25634.0,25633.0,0.006]
[1693598555549,1.93173145,25634.0,25633.0,0.006]
[1693598555751,1.93251145,25634.0,25633.0,0.006]
[1693598555951,1.93317145,25634.0,25633.0,0.006]
[1693598556203,1.93347145,25634.0,25633.0,0.006]
[1693598556425,1.93431145,25634.0,25633.0,0.006]
[1693598556627,1.93611145,25634.0,25633.0,0.006]
[1693598557002,1.95171145,25634.0,25633.0,0.006]
[1693598557171,1.95231145,25634.0,25633.0,0.006]
[1693598557400,3.12413145,25634.0,25633.0,0.006]
[1693598557585,3.12203145,25634.0,25633.0,0.006]
[1693598557777,3.12581145,25634.0,25633.0,0.006]
[1693598557984,3.12653145,25634.0,25633.0,0.006]
[1693598558164,3.12677145,25634.0,25633.0,0.006]
[1693598558363,3.12731145,25634.0,25633.0,0.006]
[1693598558561,3.12761145,25634.0,25633.0,0.006]
[1693598558767,3.12707145,25634.0,25633.0,0.006]
[1693598558970,3.12743145,25634.0,25633.0,0.006]
[1693598559170,3.13025145,25634.0,25633.0,0.006]
[1693598559379,3.13319145,25634.0,25633.0,0.006]
[1693598559577,3.13289145,25634.0,25633.0,0.006]
[1693598559943,3.13319145,25634.0,25633.0,0.006]
[1693598560119,3.26831145,25634.0,25633.0,0.006]
[1693598560322,3.31199145,25634.0,25633.0,0.006]
[1693598560521,3.15989145,25634.0,25633.0,0.006]
[1693598560659,3.16565145,25634.0,25633.0,0.006]
[1693598560862,3.16829145,25634.0,25633.0,0.006]
[1693598561061,3.17093145,25634.0,25633.0,0.006]
[1693598561317,3.16673145,25634.0,25633.0,0.006]
[1693598561522,3.75657145,25634.0,25633.0,0.006]
[1693598561698,3.76149145,25634.0,25633.0,0.006]
[1693598561916,3.78261145,25634.0,25633.0,0.006]
[1693598562264,3.77205145,25634.0,25633.0,0.006]
[1693598562483,3.77265145,25634.0,25633.0,0.006]
[1693598562662,3.78765145,25634.0,25633.0,0.006]
[1693598562890,3.81549145,25634.0,25633.0,0.006]
[1693598563095,3.81633145,25634.0,25633.0,0.006]
[1693598563293,3.81621145,25634.0,25633.0,0.006]
[1693598563630,3.81477145,25634.0,25633.0,0.006]
[1693598563867,3.81267576,25634.0,25633.0,0.006]
[1693598564063,3.81159576,25634.0,25633.0,0.006]
[1693598564271,3.80835576,25634.0,25633.0,0.006]
[1693598564471,3.80871576,25634.0,25633.0,0.006]
[1693598564673,3.80763576,25634.0,25633.0,0.006]
[1693598564870,3.80787576,25634.0,25633.0,0.006]
[1693598565078,3.80835576,25634.0,25633.0,0.006]
[1693598565280,3.80667576,25634.0,25633.0,0.006]
[1693598565480,3.80631576,25634.0,25633.0,0.006]
[1693598565725,3.80583576,25634.0,25633.0,0.006]
[1693598565926,3.77571576,25634.0,25633.0,0.006]
[1693598566130,3.70959576,25634.0,25633.0,0.006]
[1693598566359,3.69939576,25634.0,25633.0,0.006]
[1693598566563,3.70851576,25634.0,25633.0,0.006]
[1693598566865,3.71031576,25634.0,25633.0,0.006]
[1693598567064,3.70395576,25634.0,25633.0,0.006]
[1693598567234,3.71067576,25634.0,25633.0,0.006]
[1693598567393,3.71979576,25634.0,25633.0,0.006]
[1693598567603,3.72063576,25634.0,25633.0,0.006]
[1693598567800,3.73611576,25634.0,25633.0,0.006]
[1693598568000,3.73695576,25634.0,25633.0,0.006]
[1693598568228,3.73671576,25634.0,25633.0,0.006]
[1693598568428,3.74223576,25634.0,25633.0,0.006]
[1693598568627,3.73443576,25634.0,25633.0,0.006]
[1693598568829,3.73275576,25634.0,25633.0,0.006]
[1693598569034,3.71307576,25634.0,25633.0,0.006]
[1693598569232,3.71367576,25634.0,25633.0,0.006]
[1693598569511,3.72063576,25634.0,25633.0,0.006]
[1693598569735,3.72159576,25634.0,25633.0,0.006]
[1693598570081,3.72207576,25634.0,25633.0,0.006]
[1693598570235,3.72279576,25634.0,25633.0,0.006]
[1693598570435,3.72327576,25634.0,25633.0,0.006]
[1693598570692,3.72483576,25634.0,25633.0,0.006]
[1693598571048,3.72207576,25634.0,25633.0,0.006]
[1693598571282,3.72567576,25634.0,25633.0,0.006]
[1693598571455,3.72591576,25634.0,25633.0,0.006]
[1693598571655,3.72699576,25634.0,25633.0,0.006]
[1693598571857,3.72771576,25634.0,25633.0,0.006]
[1693598572110,3.72683576,25634.0,25633.0,0.006]
[1693598572289,3.72647576,25634.0,25633.0,0.006]
[1693598572490,3.72779576,25634.0,25633.0,0.006]
[1693598572827,3.77903576,25634.0,25633.0,0.006]
[1693598573106,3.77555576,25634.0,25633.0,0.006]
[1693598573262,3.76847576,25634.0,25633.0,0.006]
[1693598573464,3.76835576,25634.0,25633.0,0.006]
[1693598573716,3.75395576,25634.0,25633.0,0.006]
[1693598573852,3.75107576,25634.0,25633.0,0.006]
[1693598574057,3.74975576,25634.0,25633.0,0.006]
[1693598574280,3.74231576,25634.0,25633.0,0.006]
[1693598574474,3.74123576,25634.0,25633.0,0.006]
[1693598574680,3.74267576,25634.0,25633.0,0.006]
[1693598575247,3.74339576,25634.0,25633.0,0.006]
[1693598577197,3.83682091,25634.0,25633.0,0.006]
[1693598578190,3.4644394,25634.0,25633.0,0.006]
[1693598578394,2.2941194,25634.0,25633.0,0.006]
[1693598578736,3.15799576,25634.0,25633.0,0.006]
[1693598578998,2.83411576,25634.0,25633.0,0.006]
[1693598581020,3.06482344,25634.0,25633.0,0.006]
[1693598581224,2.83411576,25634.0,25633.0,0.006]
[1693598581424,3.05084507,25634.0,25633.0,0.006]
[1693598581633,2.83411576,25634.0,25633.0,0.006]
[1693598581804,3.1080563,25634.0,25633.0,0.006]
[1693598582013,2.92513576,25634.0,25633.0,0.006]
[1693598582215,2.93743576,25634.0,25633.0,0.006]
[1693598582418,3.27366713,25634.0,25633.0,0.006]
[1693598582633,3.28872713,25634.0,25633.0,0.006]
[1693598582838,3.28710713,25634.0,25633.0,0.006]
[1693598583037,3.28908713,25634.0,25633.0,0.006]
[1693598583256,3.05706148,25634.0,25633.0,0.006]
[1693598583569,3.05730148,25634.0,25633.0,0.006]
[1693598583772,3.26764139,25634.0,25633.0,0.006]
[1693598583925,3.27118139,25634.0,25633.0,0.006]
[1693598584122,3.27106139,25634.0,25633.0,0.006]
[1693598584489,3.26836139,25634.0,25633.0,0.006]
[1693598584686,3.27190139,25634.0,25633.0,0.006]
[1693598584850,3.54679997,25634.0,25633.0,0.006]
[1693598585003,3.54703997,25634.0,25633.0,0.006]
[1693598585411,3.54787997,25634.0,25633.0,0.006]
[1693598585615,3.54595997,25634.0,25633.0,0.006]
[1693598585883,3.41161997,25634.0,25633.0,0.006]
[1693598586034,3.41155997,25634.0,25633.0,0.006]
[1693598586239,2.12155997,25634.0,25633.0,0.006]
[1693598586480,1.85770139,25634.0,25633.0,0.006]
[1693598586673,1.76291567,25634.0,25633.0,0.006]
[1693598586884,1.5184862,25634.0,25633.0,0.006]
[1693598587076,1.76640091,25634.0,25633.0,0.006]
[1693598587276,1.76682091,25634.0,25633.0,0.006]
[1693598587500,1.76628091,25634.0,25633.0,0.006]
[1693598587701,1.76898091,25634.0,25633.0,0.006]
[1693598587906,0.58431422,25634.0,25633.0,0.006]
[1693598588111,0.34023951,25634.0,25633.0,0.07948018]
[1693598588288,0.34023951,25634.0,25633.0,0.006]
[1693598588590,0.34023951,25634.0,25633.0,0.19136482]
[1693598589151,0.34023951,25634.0,25633.0,0.19184246]
[1693598589682,0.30323951,25634.0,25633.0,0.18884246]
[1693598590042,0.28923951,25634.0,25633.0,0.18684246]
[1693598590244,0.27823951,25634.0,25633.0,0.18536482]
[1693598590443,0.29223951,25634.0,25633.0,0.18636482]
[1693598590654,0.30323951,25634.0,25633.0,0.18736482]
[1693598590788,0.28923951,25634.0,25633.0,0.18636482]
[1693598591210,0.30323951,25634.0,25633.0,0.18784047]
[1693598592422,0.30323951,25634.0,25633.0,0.06614047]
[1693598598085,0.14718351,25634.0,25633.0,0.06614047]
[1693598598837,0.145,25634.0,25633.0,0.06614047]
[1693598599034,0.145,25634.0,25633.0,0.00247565]
[1693598599035,0.43265812,25634.0,25633.0,0.00247565]
[1693598599240,0.44524163,25634.0,25633.0,0.00247565]
[1693598599484,0.44428163,25634.0,25633.0,0.00247565]
[1693598599794,0.44266163,25634.0,25633.0,0.00247565]
[1693598600029,0.44248163,25634.0,25633.0,0.00247565]
[1693598600299,0.59831463,25634.0,25633.0,0.002]
[1693598600514,0.59381463,25634.0,25633.0,0.002]
[1693598600739,0.59363463,25634.0,25633.0,0.002]
[1693598600915,0.59339463,25634.0,25633.0,0.002]
[1693598601096,0.59321463,25634.0,25633.0,0.002]
[1693598601268,0.59315463,25634.0,25633.0,0.002]
[1693598601479,0.59291463,25634.0,25633.0,0.0049]
[1693598601693,0.59267463,25634.0,25633.0,0.0049]
[1693598601903,0.59249463,25634.0,25633.0,0.0049]
[1693598602110,0.59117463,25634.0,25633.0,0.0049]
[1693598602279,0.59045463,25634.0,25633.0,0.0049]
[1693598602483,0.58925463,25634.0,25633.0,0.0049]
[1693598602687,0.50225463,25634.0,25633.0,0.0049]
[1693598603095,0.30325651,25634.0,25633.0,0.0049]
[1693598603310,0.30325651,25634.0,25633.0,0.06909207]
[1693598605290,0.30325651,25634.0,25633.0,0.06956817]
[1693598608943,0.30325651,25634.0,25633.0,0.0053761]
[1693598610168,0.30325651,25634.0,25633.0,0.0049]
[1693598611935,0.53659759,25634.0,25633.0,0.0049]
[1693598615184,0.60691759,25634.0,25633.0,0.0049]
[1693598615413,0.53659759,25634.0,25633.0,0.0049]
[1693598617347,0.60703759,25634.0,25633.0,0.0049]
[1693598617746,0.53659759,25634.0,25633.0,0.0049]
[1693598618598,0.53659759,25634.0,25631.0,0.1216]
[1693598618599,0.22209262,25633.0,25631.0,0.1216]
[1693598618791,0.22209262,25633.0,25630.0,0.15451649]
[1693598619223,0.08,25632.0,25631.0,0.00047825]
[1693598619696,0.08,25632.0,25631.0,0.02647825]
[1693598619862,0.08,25632.0,25631.0,0.01147825]
[1693598620291,0.08,25632.0,25631.0,0.00047825]
[1693598620487,0.08,25632.0,25631.0,0.01147825]
[1693598620692,0.08,25632.0,25631.0,0.02647825]
[1693598620907,0.081,25632.0,25631.0,0.02647825]
[1693598635613,0.25747279,25632.0,25631.0,0.02647825]
[1693598635941,0.16944,25632.0,25631.0,0.02647825]
[1693598636095,0.001,25632.0,25631.0,0.63728294]
[1693598636298,0.001,25632.0,25631.0,1.27056908]
[1693598636514,0.001,25632.0,25631.0,1.27170118]
[1693598636720,0.001,25632.0,25631.0,1.45901978]
[1693598636920,0.001,25632.0,25631.0,1.69271439]
[1693598637127,0.001,25632.0,25631.0,1.58071978]
[1693598638157,0.001,25632.0,25631.0,1.72114482]
[1693598638941,0.001,25632.0,25631.0,1.58071978]
[1693598639142,0.001,25632.0,25631.0,1.53379926]
[1693598639824,0.001,25632.0,25631.0,1.72111786]
[1693598639977,0.001,25632.0,25631.0,1.53379926]
[1693598640195,0.001,25632.0,25631.0,1.72111786]
[1693598640393,0.001,25632.0,25631.0,1.53379926]
[1693598640593,0.001,25632.0,25631.0,1.18105739]
[1693598640815,0.001,25632.0,25631.0,1.06544809]
[1693598641873,0.001,25632.0,25631.0,1.0016701]
[1693598642704,0.001,25632.0,25631.0,1.063663]
[1693598642899,0.001,25632.0,25631.0,1.0016701]
[1693598643310,0.001,25632.0,25631.0,1.05995055]
[1693598643508,0.001,25632.0,25631.0,1.0016701]
[1693598643916,0.001,25632.0,25631.0,1.0327164]
[1693598645202,0.001,25632.0,25631.0,1.03283794]
[1693598647230,0.001,25632.0,25631.0,1.03281659]
[1693598648263,0.001,25632.0,25631.0,1.08899082]
[1693598649939,0.1675,25635.0,25634.0,0.01781649]
[1693598650447,0.1875,25635.0,25634.0,0.01781649]
[1693598651083,0.2115,25635.0,25634.0,0.01981649]
[1693598651286,0.2115,25635.0,25634.0,0.02041225]
[1693598651497,0.37926983,25635.0,25634.0,0.02041225]
[1693598651647,0.54037208,25635.0,25634.0,0.00259576]
[1693598651851,0.55039208,25635.0,25634.0,0.00259576]
[1693598652053,0.54307208,25635.0,25634.0,0.00259576]
[1693598652229,0.56819208,25635.0,25634.0,0.00459576]
[1693598652434,0.57545208,25635.0,25634.0,0.00459576]
[1693598652640,0.57419208,25635.0,25634.0,0.00459576]
[1693598652839,0.57293208,25635.0,25634.0,0.00459576]
[1693598653040,0.57431208,25635.0,25634.0,0.004]
[1693598653419,0.57659208,25635.0,25634.0,0.004]
[1693598653605,0.57371208,25635.0,25634.0,0.004]
[1693598653803,0.57335208,25635.0,25634.0,0.004]
[1693598654011,0.57221208,25635.0,25634.0,0.004]
[1693598654358,0.57203208,25635.0,25634.0,0.004]
[1693598654546,0.57041208,25635.0,25634.0,0.004]
[1693598654691,0.56915208,25635.0,25634.0,0.004]
[1693598654891,0.57623208,25635.0,25634.0,0.004]
[1693598655091,0.57821208,25635.0,25634.0,0.004]
[1693598655273,0.39578351,25635.0,25634.0,0.004]
[1693598655489,0.57399142,25635.0,25634.0,0.004]
[1693598655696,0.58126258,25635.0,25634.0,0.004]
[1693598655902,0.40292351,25635.0,25634.0,0.004]
[1693598656099,0.59285462,25635.0,25634.0,0.004]
[1693598656302,0.52384351,25635.0,25634.0,0.004]
[1693598656522,0.52660351,25635.0,25634.0,0.004]
[1693598656820,0.72196818,25635.0,25634.0,0.004]
[1693598657045,0.53062351,25635.0,25634.0,0.004]
[1693598657261,0.53188351,25635.0,25634.0,0.004]
[1693598657404,0.52570351,25635.0,25634.0,0.004]
[1693598657599,0.69693075,25635.0,25634.0,0.004]
[1693598657867,0.51688351,25635.0,25634.0,0.004]